bitfinex/quotes_SOLUSD_20260314
["timestamp","ask_amount","ask_price","bid_price","bid_amount"]
[1773511652327,0.46980653,86.869,86.846,26.59471355]
[1773511653041,0.46980653,86.869,86.847,0.06038694]
[1773511653214,0.46980653,86.868,86.847,0.06038694]
[1773511655641,0.46980653,86.874,86.86,3.81454409]
[1773511656527,0.46980653,86.879,86.861,0.06038694]
[1773511656828,0.46980653,86.886,86.871,0.06038694]
[1773511657543,0.46980653,86.886,86.861,0.06038694]
[1773511658141,0.46980653,86.885,86.861,0.06038694]
[1773511661337,0.46980653,86.885,86.87,3.75415715]
[1773511661522,11.50942841,86.886,86.871,0.06038694]
[1773511662950,11.97923494,86.886,86.871,0.06038694]
[1773511663139,0.46980653,86.885,86.871,0.06038694]
[1773511665556,0.46980653,86.885,86.862,0.06038694]
[1773511683769,0.46980653,86.885,86.87,3.75415715]
[1773511686670,0.46980653,86.894,86.88,3.75415715]
[1773511687045,0.46980653,86.894,86.874,0.06038694]
[1773511687251,0.46980653,86.894,86.87,3.81454409]
[1773511687460,0.46980653,86.894,86.871,0.06038694]
[1773511688873,0.46980653,86.892,86.88,3.75415715]
[1773511689582,0.46980653,86.892,86.87,3.75415715]
[1773511692479,0.46980653,86.89,86.87,3.75415715]
[1773511698376,0.46980653,86.888,86.87,3.75415715]
[1773511699573,11.5092016,86.887,86.87,3.75545045]
[1773511699782,0.46980653,86.886,86.87,3.75545045]
[1773511724993,0.46980653,86.886,86.87,3.81583739]
[1773511731096,0.49085926,86.894,86.872,0.06038694]
[1773511731304,0.49085926,86.907,86.881,0.06038694]
[1773511731694,0.49085926,86.907,86.871,40.28962484]
[1773511731695,0.49085926,86.907,86.9,3.75545045]
[1773511731898,0.49085926,86.907,86.892,0.06038694]
[1773511732088,0.49085926,86.907,86.89,3.75545045]
[1773511738183,0.49085926,86.907,86.89,3.81583739]
[1773511746510,0.49677651,86.912,86.9,3.75545045]
[1773511746693,0.49677651,86.918,86.9,3.75545045]
[1773511748199,11.50522912,86.917,86.9,3.75545045]
[1773511748412,0.49677651,86.916,86.9,3.75545045]
[1773511752419,0.49677651,86.914,86.9,3.75545045]
[1773511761717,0.49677651,86.914,86.9,3.75305912]
[1773511809300,0.49677651,86.914,86.891,0.06038694]
[1773511809599,0.49677651,86.914,86.9,3.75305912]
[1773511812704,0.49677651,86.914,86.9,3.81344606]
[1773511821604,0.49677651,86.914,86.9,3.81327125]
[1773511823991,0.49677651,86.914,86.9,3.75288431]
[1773511833617,0.49677651,86.914,86.9,3.81327125]
[1773511834210,0.49677651,86.914,86.901,0.06038694]
[1773511835326,11.97502813,86.918,86.901,0.06038694]
[1773511835627,11.70353056,86.93,86.911,0.47519664]
[1773511837431,12.16199402,86.93,86.911,0.47519664]
[1773511837621,0.45846346,86.929,86.911,0.47519664]
[1773511838131,0.45846346,86.929,86.92,3.75288431]
[1773511838922,0.45846346,86.927,86.92,3.75288431]
[1773511841225,11.50403791,86.926,86.92,3.75288431]
[1773511843214,11.50403791,86.926,86.911,0.47519664]
[1773511847734,11.96250137,86.926,86.911,0.47519664]
[1773511848430,0.45846346,86.925,86.911,0.47519664]
[1773511848622,0.45846346,86.925,86.91,3.75288431]
[1773511848928,0.45846346,86.923,86.898,11.50762936]
[1773511849528,0.45846346,86.923,86.9,4.22808095]
[1773511849738,0.45846346,86.923,86.901,0.47519664]
[1773511851134,0.45846346,86.923,86.902,11.986078]
[1773511853938,0.45846346,86.923,86.91,4.22208503]
[1773511854147,0.45846346,86.923,86.91,3.75288431]
[1773511854531,0.45846346,86.923,86.906,0.46920072]
[1773511862149,11.50451391,86.923,86.906,0.46920072]
[1773511862350,0.49439443,86.922,86.906,0.46920072]
[1773511865052,0.49439443,86.922,86.902,11.97641574]
[1773511866758,0.49439443,86.922,86.903,0.46920072]
[1773511882459,0.49439443,86.922,86.902,11.50721502]
[1773511882667,0.47909736,86.92,86.897,0.49698229]
[1773511883766,0.47909736,86.92,86.9,3.75259892]
[1773511884565,0.47909736,86.918,86.9,3.75259892]
[1773511887664,0.47909736,86.916,86.9,3.75259892]
[1773511897261,0.47909736,86.916,86.897,0.49698229]
[1773511919009,0.47534573,86.914,86.893,0.45847438]
[1773511920505,0.47534573,86.914,86.895,0.45847438]
[1773511924606,0.47534573,86.924,86.897,0.45847438]
[1773511925102,0.47534573,86.924,86.9,3.75259892]
[1773511925304,0.47534573,86.924,86.9,4.2110733]
[1773511926706,0.47534573,86.922,86.9,4.2110733]
[1773511928613,0.47534573,86.92,86.901,0.45847438]
[1773511941631,0.48184908,86.918,86.901,0.45847438]
[1773511943628,0.48184908,86.916,86.901,0.45847438]
[1773511946725,0.48184908,86.914,86.9,3.75286975]
[1773511960444,0.48184908,86.914,86.9,4.21453685]
[1773511970350,0.49658031,86.919,86.901,0.45420688]
[1773511971653,0.46685545,86.918,86.901,0.45420688]
[1773512003085,0.4594273,86.922,86.91,3.75286975]
[1773512003261,0.4594273,86.922,86.902,11.98192392]
[1773512003765,0.4594273,86.922,86.903,0.4747089]
[1773512016794,0.4594273,86.92,86.9,3.75259621]
[1773512017596,0.4594273,86.92,86.888,28.77247886]
[1773512017597,0.2,86.93,86.911,0.4747089]
[1773512017886,0.2,86.93,86.91,3.75259621]
[1773512017887,0.4594273,86.929,86.91,3.75259621]
[1773512018688,0.4594273,86.929,86.91,15.73336345]
[1773512018991,0.4594273,86.933,86.911,0.4747089]
[1773512019191,0.4594273,86.931,86.91,3.75259621]
[1773512020380,0.4594273,86.931,86.91,4.22730511]
[1773512024729,0.4594273,86.931,86.911,0.4747089]
[1773512030595,0.4594273,86.931,86.912,11.97888039]
[1773512034904,0.4594273,86.931,86.912,11.50589101]
[1773512035112,0.4594273,86.931,86.913,0.47626062]
[1773512038312,0.45608146,86.929,86.91,3.75259621]
[1773512039410,0.45608146,86.929,86.911,11.5060234]
[1773512050314,0.45608146,86.929,86.911,11.98228402]
[1773512051921,0.45608146,86.929,86.911,11.5060234]
[1773512053322,0.45608146,86.929,86.911,11.98228402]
[1773512061524,0.45608146,86.929,86.911,11.5060234]
[1773512061732,0.45608146,86.929,86.912,0.45143941]
[1773512065733,0.47708978,86.927,86.891,7.34]
[1773512065911,0.47708978,86.909,86.883,0.45143941]
[1773512068538,0.47708978,86.907,86.883,0.45143941]
[1773512072138,0.47708978,86.905,86.883,0.45143941]
[1773512075551,0.47708978,86.903,86.883,0.45143941]
[1773512078255,0.47708978,86.901,86.883,0.45143941]
[1773512079158,0.47708978,86.899,86.871,11.51129755]
[1773512079449,0.47708978,86.899,86.868,7.34]
[1773512079630,0.47708978,86.899,86.864,0.45143941]
[1773512080545,0.47708978,86.899,86.865,11.5121165]
[1773512080728,0.47708978,86.899,86.866,0.45143941]
[1773512081143,11.50774471,86.898,86.87,3.75220563]
[1773512081344,0.47708978,86.897,86.87,3.75220563]
[1773512081536,0.47708978,86.897,86.87,4.20364504]
[1773512082043,0.47708978,86.897,86.87,3.75220563]
[1773512082346,0.47708978,86.897,86.871,0.45143941]
[1773512083850,0.47708978,86.895,86.871,0.45143941]
[1773512085850,11.50827444,86.894,86.871,0.45143941]
[1773512086044,0.47708978,86.893,86.871,0.45143941]
[1773512088949,0.47708978,86.891,86.871,0.45143941]
[1773512091953,0.48714575,86.889,86.871,0.45143941]
[1773512094840,11.50906914,86.888,86.871,0.45143941]
[1773512095040,0.48714575,86.887,86.871,0.45143941]
[1773512097954,11.99647981,86.886,86.871,0.45143941]
[1773512098255,0.48714575,86.885,86.871,0.45143941]
[1773512098452,0.48714575,86.885,86.866,0.48458839]
[1773512099551,0.48714575,86.885,86.856,11.99780765]
[1773512099767,0.48714575,86.885,86.852,0.48458839]
[1773512099947,40.28266923,86.886,86.852,0.48458839]
[1773512099948,0.48714575,86.877,86.852,0.48458839]
[1773512100756,0.48714575,86.859,86.829,0.48458839]
[1773512102034,0.48714575,86.857,86.829,0.48458839]
[1773512102653,0.48714575,86.849,86.824,7.34]
[1773512103466,40.29565496,86.858,86.8,3.85220563]
[1773512103467,0.48714575,86.839,86.8,3.85220563]
[1773512103647,0.48714575,86.829,86.8,0.1]
[1773512104554,0.48714575,86.827,86.8,0.1]
[1773512106759,0.48714575,86.819,86.8,0.1]
[1773512109747,0.48714575,86.817,86.8,0.1]
[1773512110561,0.48714575,86.817,86.79,0.1]
[1773512111843,11.51861408,86.816,86.791,0.24560508]
[1773512112050,0.48714575,86.815,86.791,0.24560508]
[1773512113860,0.48714575,86.813,86.791,0.24560508]
[1773512114263,0.48714575,86.813,86.79,0.1]
[1773512114650,0.48714575,86.809,86.79,0.1]
[1773512116355,0.48714575,86.807,86.79,0.1]
[1773512116670,7.34,86.832,86.79,0.1]
[1773512116671,7.34,86.832,86.801,0.24560508]
[1773512116854,11.51450251,86.847,86.822,0.24560508]
[1773512117171,0.48714575,86.846,86.822,0.24560508]
[1773512117951,7.34,86.85,86.822,0.24560508]
[1773512117952,12.00191343,86.845,86.822,0.24560508]
[1773512118157,0.48714575,86.844,86.822,0.24560508]
[1773512120669,11.51503287,86.843,86.822,0.24560508]
[1773512122453,12.00291194,86.843,86.822,0.24560508]
[1773512124775,0.48787907,86.847,86.822,0.24560508]
[1773512127171,0.48787907,86.845,86.822,0.24560508]
[1773512130875,11.51490028,86.844,86.822,0.24560508]
[1773512131068,0.48787907,86.843,86.822,0.24560508]
[1773512133477,0.48787907,86.841,86.822,0.24560508]
[1773512137479,11.51543067,86.84,86.822,0.24560508]
[1773512137663,12.00330974,86.84,86.822,0.24560508]
[1773512137860,0.48787907,86.839,86.822,0.24560508]
[1773512138282,0.48787907,86.839,86.807,0.24560508]
[1773512138471,0.48787907,86.839,86.811,0.24560508]
[1773512139564,0.48787907,86.837,86.811,0.24560508]
[1773512140769,11.51596112,86.836,86.811,0.24560508]
[1773512140975,0.48787907,86.835,86.811,0.24560508]
[1773512141683,11.51596112,86.836,86.811,0.24560508]
[1773512141879,11.51596112,86.836,86.813,0.24560508]
[1773512142384,11.51596112,86.836,86.821,0.24560508]
[1773512143462,0.48787907,86.84,86.821,0.24560508]
[1773512144465,11.51529807,86.841,86.821,0.24560508]
[1773512145080,11.51529807,86.841,86.831,0.24560508]
[1773512145472,28.78292916,86.858,86.831,0.24560508]
[1773512145473,11.5139722,86.851,86.831,0.24560508]
[1773512145671,0.48787907,86.85,86.831,0.24560508]
[1773512147887,11.51423735,86.849,86.831,0.24560508]
[1773512149888,0.48787907,86.849,86.831,0.24560508]
[1773512151885,11.51436993,86.848,86.831,0.24560508]
[1773512152073,12.00116563,86.848,86.831,0.24560508]
[1773512152470,11.51336343,86.856,86.833,0.24560508]
[1773512153171,11.51336343,86.856,86.84,3.75995156]
[1773512153395,11.51336343,86.856,86.841,0.24560508]
[1773512156992,0.4867957,86.856,86.833,0.24560508]
[1773512157970,0.4867957,86.854,86.833,0.24560508]
[1773512158571,0.4867957,86.854,86.816,7.34]
[1773512158792,0.4867957,86.849,86.817,11.5184814]
[1773512158988,0.4867957,86.849,86.82,4.00555664]
[1773512159193,0.4867957,86.849,86.821,0.24560508]
[1773512167623,11.51436993,86.848,86.821,0.24560508]
[1773512167825,0.4867957,86.847,86.821,0.24560508]
[1773512168627,11.5146351,86.846,86.821,0.24560508]
[1773512168927,0.4867957,86.845,86.821,0.24560508]
[1773512175514,0.4867957,86.843,86.821,0.24560508]
[1773512180438,11.51516547,86.842,86.821,0.24560508]
[1773512180618,0.4867957,86.841,86.821,0.24560508]
[1773512184938,0.48715522,86.839,86.816,7.58560508]
[1773512185231,0.48715522,86.839,86.817,0.24560508]
[1773512186017,0.48715522,86.839,86.816,7.34]
[1773512186841,0.48715522,86.839,86.816,7.58560508]
[1773512187942,11.51569589,86.838,86.816,7.58560508]
[1773512188145,0.48715522,86.837,86.816,7.58560508]
[1773512188843,0.48715522,86.837,86.82,3.75995156]
[1773512189542,0.48715522,86.837,86.82,3.75988112]
[1773512191032,0.48715522,86.837,86.82,4.0054862]
[1773512195451,0.48715522,86.837,86.82,0.24560508]
[1773512200447,0.48715522,86.837,86.816,7.58560508]
[1773512200853,0.48715522,86.835,86.816,7.34]
[1773512215667,0.47962384,86.833,86.793,11.52163589]
[1773512216078,0.47962384,86.833,86.8,3.75988112]
[1773512221374,0.5,86.831,86.8,3.75988112]
[1773512223960,0.5,86.831,86.79,0.1]
[1773512223961,0.5,86.829,86.79,3.85988112]
[1773512225180,0.5,86.827,86.791,11.52193199]
[1773512229459,0.5,86.825,86.791,11.52193199]
[1773512229664,0.5,86.825,86.8,3.75988112]
[1773512235980,0.5,86.838,86.81,3.75988112]
[1773512237381,0.5,86.836,86.81,3.75988112]
[1773512237589,0.5,86.836,86.82,3.75988112]
[1773512237883,12.01423735,86.849,86.83,3.75988112]
[1773512238379,0.5,86.848,86.83,3.75988112]
[1773512240091,0.5,86.846,86.83,3.75988112]
[1773512244979,11.51476768,86.845,86.83,3.75988112]
[1773512245181,0.5,86.844,86.83,3.75988112]
[1773512247489,0.5,86.848,86.83,3.75988112]
[1773512249491,40.29519105,86.859,86.83,3.75988112]
[1773512249492,11.51450251,86.847,86.83,3.75988112]
[1773512249689,11.51402378,86.851,86.83,3.75915432]
[1773512249879,12.01402378,86.851,86.83,3.75915432]
[1773512250196,0.5,86.85,86.83,3.75915432]
[1773512250909,11.51370326,86.854,86.84,3.75915432]
[1773512257702,0.5,86.854,86.84,3.75915432]
[1773512259707,11.51370706,86.853,86.84,3.75915432]
[1773512259886,0.5,86.852,86.84,3.75915432]
[1773512261197,0.5,86.852,86.83,3.75915432]
[1773512263010,0.5,86.852,86.83,15.27590994]
[1773512263683,0.5,86.85,86.83,15.27590994]
[1773512263884,0.5,86.85,86.83,3.75915432]
[1773512266202,0.5,86.848,86.83,3.75915432]
[1773512267297,0.5,86.848,86.824,11.51747275]
[1773512280824,0.5,86.848,86.83,3.75915432]
[1773512281016,0.5,86.861,86.83,3.75915432]
[1773512281218,0.5,86.861,86.84,3.75915432]
[1773512286435,0.5,86.859,86.84,3.75915432]
[1773512293040,11.51304427,86.858,86.84,3.75915432]
[1773512293251,0.5,86.857,86.84,3.75915432]
[1773512311640,0.5,86.857,86.84,3.75800889]
[1773512323458,20.82117691,86.883,86.85,3.75800889]
[1773512323459,0.5,86.865,86.85,3.75800889]
[1773512325667,0.5,86.87,86.85,3.75800889]
[1773512325867,7.34,86.889,86.861,0.47238568]
[1773512326073,11.50978218,86.883,86.87,3.75800889]
[1773512326579,7.34,86.889,86.87,3.75800889]
[1773512326750,7.34,86.889,86.88,3.75800889]
[1773512327269,11.50734744,86.901,86.88,3.75800889]
[1773512327474,28.76807004,86.902,86.88,3.75800889]
[1773512327779,0.4644628,86.901,86.88,3.75800889]
[1773512328369,28.76807004,86.902,86.88,3.75800889]
[1773512328370,0.4644628,86.899,86.88,3.75800889]
[1773512330267,0.4644628,86.899,86.87,3.75800889]
[1773512332073,0.47651173,86.897,86.87,3.75800889]
[1773512332391,0.47651173,86.897,86.87,4.25204746]
[1773512335066,11.50800957,86.896,86.87,4.25204746]
[1773512335266,0.47651173,86.895,86.87,4.25204746]
[1773512337468,0.47651173,86.893,86.87,4.25204746]
[1773512338772,0.47651173,86.893,86.858,11.51296153]
[1773512338975,0.47651173,86.889,86.856,0.49403857]
[1773512340464,11.50906914,86.888,86.856,0.49403857]
[1773512340671,0.47651173,86.887,86.856,0.49403857]
[1773512344172,0.47651173,86.879,86.856,0.49403857]
[1773512344973,0.47651173,86.879,86.857,12.0072154]
[1773512345782,0.47651173,86.879,86.858,0.49403857]
[1773512347078,11.98690142,86.879,86.858,0.49403857]
[1773512347283,0.47651173,86.878,86.858,0.49403857]
[1773512347586,0.47651173,86.878,86.844,7.34]
[1773512350183,0.49701928,86.876,86.845,11.51476768]
[1773512350670,0.49701928,86.876,86.85,3.75800889]
[1773512351186,0.49701928,86.874,86.851,11.5139722]
[1773512352168,0.49701928,86.874,86.845,11.51476768]
[1773512352489,0.49701928,86.874,86.85,3.75800889]
[1773512354285,0.49701928,86.872,86.85,3.75800889]
[1773512354490,0.49701928,86.872,86.85,15.27210302]
[1773512354691,0.49701928,86.872,86.844,7.34]
[1773512355591,0.49701928,86.872,86.847,11.51447803]
[1773512360797,0.49701928,86.872,86.85,3.75800889]
[1773512361303,0.49701928,86.87,86.85,3.75800889]
[1773512369921,0.49701928,86.87,86.847,11.51447803]
[1773512375107,0.49701928,86.87,86.85,3.7576594]
[1773512377113,0.49701928,86.868,86.85,3.7576594]
[1773512388616,0.49701928,86.868,86.847,11.51447803]
[1773512398842,0.49701928,86.868,86.844,7.34]
[1773512399133,12.00887073,86.867,86.844,18.85480756]
[1773512400312,0.49701928,86.866,86.844,11.51480756]
[1773512411342,0.49701928,86.866,86.814,102.9]
[1773512411343,0.46590387,86.849,86.809,11.43716579]
[1773512411532,0.46590387,86.849,86.809,11.84312722]
[1773512411722,0.46590387,86.839,86.811,0.40596143]
[1773512412536,0.46590387,86.837,86.811,0.40596143]
[1773512412844,0.46590387,86.837,86.812,11.92510624]
[1773512413749,0.46590387,86.837,86.813,0.40596143]
[1773512418152,11.51238156,86.863,86.831,0.49738964]
[1773512420058,11.51264664,86.861,86.831,0.49738964]
[1773512420237,0.46590387,86.86,86.831,0.49738964]
[1773512425036,0.45872359,86.858,86.831,0.49738964]
[1773512431259,0.45872359,86.856,86.831,0.49738964]
[1773512434163,0.45872359,86.854,86.831,0.49738964]
[1773512435762,0.45872359,86.852,86.831,0.49738964]
[1773512437161,11.5139722,86.851,86.831,0.49738964]
[1773512437365,0.45872359,86.85,86.831,0.49738964]
[1773512439769,0.45872359,86.848,86.83,3.7592673]
[1773512441070,11.51423735,86.849,86.831,0.49522287]
[1773512441271,0.45872359,86.848,86.823,7.34]
[1773512441768,0.45872359,86.837,86.809,11.93238866]
[1773512441953,0.45872359,86.837,86.81,0.49522287]
[1773512442654,0.45872359,86.837,86.811,0.49522287]
[1773512443069,0.45872359,86.835,86.811,0.49522287]
[1773512446152,0.45872359,86.833,86.811,0.49522287]
[1773512448572,11.51649161,86.832,86.811,0.49522287]
[1773512448871,11.9752152,86.832,86.811,0.49522287]
[1773512449373,0.45872359,86.831,86.811,0.49522287]
[1773512452270,11.51675688,86.83,86.811,0.49522287]
[1773512453679,0.45658238,86.829,86.811,0.49522287]
[1773512459180,0.45658238,86.827,86.811,0.49522287]
[1773512462383,11.51728744,86.826,86.811,0.49522287]
[1773512476802,0.45658238,86.827,86.811,0.49522287]
[1773512490216,0.46638217,86.825,86.797,7.34]
[1773512490516,0.46638217,86.825,86.797,7.7901021]
[1773512490695,0.46638217,86.825,86.798,0.4501021]
[1773512491513,0.46638217,86.823,86.798,0.4501021]
[1773512493721,0.46638217,86.821,86.798,0.4501021]
[1773512495323,0.46638217,86.819,86.797,7.34]
[1773512496418,0.46638217,86.817,86.797,7.7901021]
[1773512497020,0.46638217,86.817,86.797,7.34]
[1773512497322,0.46638217,86.817,86.798,0.4501021]
[1773512505614,0.46638217,86.822,86.798,0.4501021]
[1773512505819,11.51688951,86.829,86.801,0.4501021]
[1773512506421,0.46638217,86.828,86.801,0.4501021]
[1773512509225,11.5171548,86.827,86.801,0.4501021]
[1773512509412,0.46638217,86.826,86.801,0.4501021]
[1773512509910,0.46638217,86.826,86.803,0.4501021]
[1773512511427,0.4813397,86.824,86.803,0.4501021]
[1773512515350,11.5176854,86.823,86.803,0.4501021]
[1773512516336,0.4813397,86.822,86.803,0.4501021]
[1773512518336,0.4813397,86.83,86.811,0.48158041]
[1773512521241,11.51688951,86.829,86.811,0.48158041]
[1773512522038,11.99822921,86.829,86.811,0.48158041]
[1773512524243,0.4813397,86.828,86.811,0.48158041]
[1773512527236,11.5171548,86.827,86.811,0.48158041]
[1773512529825,0.4813397,86.827,86.811,0.48158041]
[1773512533245,11.99862714,86.826,86.811,0.48158041]
[1773512535451,0.4813397,86.83,86.811,0.48158041]
[1773512535653,0.4813397,86.838,86.821,0.48158041]
[1773512536444,0.4813397,86.838,86.805,7.34]
[1773512537351,0.4813397,86.829,86.805,7.34]
[1773512537747,0.4813397,86.819,86.79,3.86270573]
[1773512538550,0.4813397,86.819,86.791,0.39028489]
[1773512541355,0.4813397,86.817,86.793,0.39028489]
[1773512542234,11.51861408,86.816,86.793,0.39028489]
[1773512542455,0.47697265,86.815,86.793,0.39028489]
[1773512551766,0.47697265,86.813,86.793,0.39028489]
[1773512552062,0.47697265,86.813,86.8,3.76270573]
[1773512553861,0.47697265,86.813,86.8,4.15299062]
[1773512554065,11.5182772,86.819,86.8,3.76270573]
[1773512554264,0.47697265,86.818,86.801,0.39028489]
[1773512555657,11.5184814,86.817,86.801,0.39028489]
[1773512557582,0.47697265,86.816,86.801,0.39028489]
[1773512560870,0.47697265,86.816,86.8,3.76177326]
[1773512572084,0.47697265,86.816,86.801,0.39028489]
[1773512580790,0.47697265,86.816,86.79,0.1]
[1773512580791,0.46884514,86.847,86.811,0.39028489]
[1773512580976,11.51304427,86.858,86.841,0.39028489]
[1773512581289,11.51304427,86.858,86.85,3.76177326]
[1773512581489,11.98188941,86.858,86.841,0.39028489]
[1773512582476,11.98188941,86.858,86.85,3.76177326]
[1773512584375,0.46884514,86.878,86.851,0.39028489]
[1773512588284,0.46884514,86.876,86.851,0.39028489]
[1773512588585,0.46884514,86.876,86.85,3.76177326]
[1773512590302,0.46884514,86.874,86.85,3.76177326]
[1773512590697,0.46884514,86.874,86.842,0.39028489]
[1773512590896,0.46884514,86.874,86.85,4.15205815]
[1773512593389,0.46884514,86.872,86.85,4.15205815]
[1773512595689,11.51132138,86.871,86.85,4.15205815]
[1773512595890,0.46884514,86.87,86.85,4.15205815]
[1773512598189,11.51158641,86.869,86.85,4.15205815]
[1773512598487,0.46884514,86.868,86.85,4.15205815]
[1773512599304,11.51185145,86.867,86.85,4.15205815]
[1773512599608,0.46884514,86.866,86.85,4.15205815]
[1773512602295,11.5121165,86.865,86.85,4.15205815]
[1773512602494,0.4627312,86.864,86.85,4.15205815]
[1773512608315,11.51238156,86.863,86.85,4.15205815]
[1773512610594,11.51190135,86.867,86.851,0.39028489]
[1773512611410,0.4627312,86.866,86.851,0.39028489]
[1773512618716,0.4627312,86.866,86.85,3.75707151]
[1773512621317,0.4627312,86.866,86.85,4.1473564]
[1773512630050,0.4627312,86.864,86.85,3.75707151]
[1773512630325,0.4627312,86.864,86.84,3.75707151]
[1773512631229,0.485707,86.862,86.84,3.75707151]
[1773512632315,11.51264664,86.861,86.84,3.75707151]
[1773512632510,0.49974626,86.86,86.84,3.75707151]
[1773512632934,0.49974626,86.86,86.83,11.56445145]
[1773512633435,0.49974626,86.859,86.83,3.75707151]
[1773512635820,40.29565496,86.858,86.83,3.75707151]
[1773512636134,0.49974626,86.857,86.83,3.75707151]
[1773512637215,0.49974626,86.857,86.831,0.46737994]
[1773512638435,0.49974626,86.855,86.831,0.46737994]
[1773512640742,0.49974626,86.853,86.831,0.46737994]
[1773512644034,0.49974626,86.869,86.841,0.46737994]
[1773512644243,11.51212484,86.865,86.85,4.22445145]
[1773512644623,11.51212484,86.865,86.851,0.46737994]
[1773512647631,0.49974626,86.876,86.851,0.46737994]
[1773512647839,0.49974626,86.876,86.842,0.46737994]
[1773512648024,0.49974626,86.876,86.86,3.75707151]
[1773512648339,7.34,86.878,86.86,3.75707151]
[1773512648340,11.51052637,86.877,86.861,0.46737994]
[1773512650025,11.51052637,86.877,86.87,3.75707151]
[1773512650227,11.50893668,86.889,86.871,0.46737994]
[1773512651429,12.00868294,86.889,86.871,0.46737994]
[1773512653028,0.49974626,86.893,86.871,0.46737994]
[1773512654529,0.49974626,86.889,86.851,0.46737994]
[1773512655443,0.49974626,86.887,86.861,0.46737994]
[1773512659437,0.49974626,86.885,86.861,0.46737994]
[1773512661050,0.49974626,86.883,86.861,0.46737994]
[1773512662443,0.49759936,86.881,86.861,0.46737994]
[1773512668551,3.75707151,86.89,86.856,0.45051157]
[1773512668552,0.49759936,86.879,86.856,0.45051157]
[1773512671352,11.51039388,86.878,86.856,0.45051157]
[1773512671555,0.49759936,86.877,86.856,0.45051157]
[1773512674348,11.51065887,86.876,86.856,0.45051157]
[1773512674539,0.49759936,86.875,86.856,0.45051157]
[1773512677367,11.51092386,86.874,86.856,0.45051157]
[1773512677559,0.49759936,86.873,86.856,0.45051157]
[1773512687575,0.49759936,86.878,86.856,0.45051157]
[1773512687957,0.49759936,86.878,86.861,0.45051157]
[1773512689278,0.49759936,86.889,86.861,0.45051157]
[1773512690977,0.49357902,86.887,86.861,0.45051157]
[1773512692954,0.49890459,86.906,86.88,3.75683528]
[1773512693362,0.49890459,86.906,86.878,0.48789365]
[1773512698381,11.50681778,86.905,86.878,0.48789365]
[1773512698583,0.49890459,86.904,86.878,0.48789365]
[1773512701385,11.5070826,86.903,86.878,0.48789365]
[1773512701587,0.49890459,86.902,86.878,0.48789365]
[1773512704500,11.50734744,86.901,86.878,0.48789365]
[1773512704670,0.49890459,86.9,86.878,0.48789365]
[1773512707389,11.50761228,86.899,86.878,0.48789365]
[1773512707576,0.49890459,86.898,86.878,0.48789365]
[1773512708392,11.50787714,86.897,86.88,3.75683528]
[1773512708577,0.49890459,86.896,86.88,3.75683528]
[1773512708886,0.49890459,86.896,86.88,4.24472893]
[1773512710494,11.50814201,86.895,86.881,0.48789365]
[1773512712082,11.50747986,86.9,86.881,0.48789365]
[1773512714485,0.49890459,86.9,86.881,0.48789365]
[1773512716591,12.00651687,86.899,86.881,0.48789365]
[1773512717484,11.50787714,86.897,86.881,0.48789365]
[1773512726315,11.95940585,86.897,86.881,0.48789365]
[1773512730726,0.45152871,86.896,86.88,3.75683528]
[1773512734516,0.45152871,86.894,86.88,3.75683528]
[1773512739720,0.45152871,86.894,86.88,3.7546447]
[1773512746936,0.45152871,86.892,86.88,3.7546447]
[1773512748539,0.45152871,86.892,86.874,0.4854919]
[1773512749645,0.45152871,86.892,86.88,3.7546447]
[1773512775566,0.45152871,86.892,86.88,4.22173572]
[1773512775750,0.45614097,86.896,86.88,4.22173572]
[1773512775941,0.45614097,86.896,86.881,0.46709102]
[1773512776862,11.50814201,86.895,86.881,0.46709102]
[1773512779166,0.45614097,86.895,86.881,0.46709102]
[1773512781968,11.50820006,86.895,86.88,3.7546447]
[1773512782173,0.49178892,86.894,86.88,3.7546447]
[1773512799576,0.49178892,86.894,86.88,3.75475972]
[1773512808096,0.49178892,86.894,86.881,0.47617486]
[1773512808293,0.49178892,86.898,86.881,0.47617486]
[1773512809284,0.2,86.91,86.891,0.47617486]
[1773512809479,0.2,86.91,86.882,11.50986395]
[1773512809480,0.49178892,86.909,86.882,11.50986395]
[1773512809680,0.49178892,86.909,86.89,3.75475972]
[1773512811485,11.50642058,86.908,86.89,3.75475972]
[1773512811682,0.48190426,86.907,86.89,4.24717612]
[1773512811882,0.48190426,86.907,86.876,7.34]
[1773512811883,0.48190426,86.907,86.88,3.75475972]
[1773512813598,0.48190426,86.905,86.88,3.75475972]
[1773512815504,11.50695019,86.904,86.88,3.75475972]
[1773512815705,0.48190426,86.903,86.88,3.75475972]
[1773512818490,11.50721502,86.902,86.88,3.75475972]
[1773512818708,0.48190426,86.901,86.88,3.75475972]
[1773512820512,0.48190426,86.899,86.88,3.75475972]
[1773512824620,0.48190426,86.897,86.88,3.75475972]
[1773512828520,0.48190426,86.895,86.88,3.75475972]
[1773512832222,0.48190426,86.895,86.88,4.24717612]
[1773512838922,0.48190426,86.895,86.881,0.4924164]
[1773512842701,0.45772354,86.899,86.881,0.4924164]
[1773512845403,0.45772354,86.903,86.881,0.4924164]